Cogmind - Beta 10.2 @@@ ROGUE MODE // 2022.01.20 @ 07:43:47 Player: Shodan Result: Destroyed by G-34 Mercenary with Small Laser Performance ------------- Evolutions (0) 0 Regions Visited (2) 400 Robots Destroyed (13) 65 Value Destroyed (271) 271 Prototype IDs (0) 0 Alien Tech Used (0) 0 Bonus (0) 0 TOTAL SCORE: 736 Bonus ------- None Cogmind --------- Core Integrity 0/250 Matter 255/300 Energy 89/100 System Corruption 0% Temperature Cool (6) Movement Core (100) Ox1 Location -10/Mines Parts ------- > --- POWER (1) -------- (None) > --- PROPULSION (2) --- (None) > --- UTILITY (2) ------ Small Storage Unit > --- WEAPON (2) ------- Light Assault Rifle > --- INVENTORY (6) ---- Ion Engine Aluminum Leg Aluminum Leg Heat Sink Large Battery (300) Peak State ------------ > --- POWER ------------ Ion Engine > --- PROPULSION ------- Aluminum Leg Aluminum Leg > --- UTILITY ---------- Small Storage Unit Propulsion Shielding > --- WEAPON ----------- EM Pulse Gun Medium Laser > --- INVENTORY -------- Ion Engine Small Laser Grenade Launcher [Rating: 7] Favorites ----------- Power Ion Engine Engine Ion Engine Propulsion Aluminum Leg Leg Aluminum Leg Utility Small Storage Unit Device Heat Sink Storage Small Storage Unit Protection Light Armor Plating Weapon Small Laser Energy Gun Small Laser Energy Cannon Beam Cannon Ballistic Gun Light Assault Rifle Launcher Grenade Launcher Build | -11 -10 -10 ------- Run | Scr Mat Min Slots Evolved . | . . . Power . | . . . Propulsion . | . . . Utility . | . . . Weapon . | . . . Parts Attached 16 | 6 8 2 Power 1 | 1 . . Engine 1 | 1 . . Core . | . . . Reactor . | . . . Propulsion 2 | 2 . . Treads . | . . . Leg 2 | 2 . . Wheel . | . . . Hover . | . . . Flight . | . . . Utility 4 | 1 3 . Device 1 | . 1 . Storage 1 | 1 . . Processor . | . . . Hackware . | . . . Protection 2 | . 2 . Artifact . | . . . Weapon 9 | 2 5 2 Energy Gun 6 | 2 4 . Energy Cannon 1 | . 1 . Ballistic Gun 1 | . . 1 Ballistic Cannon . | . . . Launcher 1 | . . 1 Special Weapon . | . . . Impact Weapon . | . . . Slashing Weapon . | . . . Piercing Weapon . | . . . Special Melee Weapon . | . . . Unidentified Prototypes . | . . . Parts Lost 10 | . 3 7 Power 1 | . . 1 Propulsion 2 | . . 2 Utility 1 | . . 1 Weapon 6 | . 3 3 Highest Loss Streak 7 | . 3 7 Average Slot Usage (%) 97 | . 98 97 Engine 13 | . 14 13 Leg 27 | . 28 27 Storage 14 | . 14 14 Protection 13 | . 12 13 Energy Gun 25 | . 23 26 Energy Cannon 1 | . 3 . Naked Turns . | . . . Heaviest Build 15 | 13 15 14 Greatest Support 20 | 20 20 20 Greatest Overweight (x) 1 | . . 1 Average Overweight (x) . | . . . Largest Inventory Capacity 6 | 6 6 6 Average Capacity 5 | 5 6 6 Most Carried 6 | 2 6 6 Average Carried 5 | 1 4 5 Final Capacity 6 | 6 6 6 Final Carried 6 | 2 6 5 Class Distribution -------------------- 100% | Mutant Dominant Class ---------------- Mutant | -10/Materials Mutant | -10/Mines Resources | -11 -10 -10 ----------- Run | Scr Mat Min Matter Collected 324 | 171 153 . Remotely . | . . . Salvage Created 277 | . 226 51 Parts 30 | . 18 12 Haulers Intercepted . | . . . Recyclers Shooed . | . . . Parts Field Recycled . | . . . Retrieved Matter . | . . . Parts Self-Destructed . | . . . Prevented . | . . . Kills | -11 -10 -10 ------- Run | Scr Mat Min Combat Hostiles Destroyed 9 | . 6 3 Guns 5 | . 4 1 Cannons 2 | . 2 . AOE 2 | . . 2 Classes Destroyed 5 | . 4 1 Tunneler 1 | . . 1 Operator 1 | . 1 . Watcher 2 | . 2 . Swarmer 5 | . 3 2 Grunt 4 | . 3 1 Best Kill Streak 5 | . 5 3 Combat Bots Only 4 | . 4 2 Max Kills in Single Turn 2 | . 1 2 Gunslinging . | . . . Exploded 1 | . . 1 Melee . | . . . Uniques/NPCs Destroyed . | . . . Combat | -11 -10 -10 -------- Run | Scr Mat Min Damage Taken 998 | . 402 596 Core 257 | . 49 208 Absorbed by Shields . | . . . Core Remaining (%) 100 | 100 . . Volleys Fired 50 | . 29 21 Largest 2 | . 2 2 Hottest 110 | . 110 80 Shots Fired 92 | . 54 38 Gun 75 | . 39 36 Cannon 15 | . 15 . Launcher 2 | . . 2 Special . | . . . Kinetic 1 | . . 1 Thermal 86 | . 51 35 Explosive 2 | . . 2 Electromagnetic 3 | . 3 . Robot Hit Streak 14 | . 6 14 Robot Miss Streak 7 | . 7 1 Penetration Max . | . . . Secondary Targets . | . . . Shots Hit Robots 45 | . 26 19 Core Hits 22 | . 14 8 Critical Hits . | . . . Critical Kills . | . . . Critical Parts Destroyed . | . . . Melee Attacks . | . . . Impact . | . . . Slashing . | . . . Piercing . | . . . Sneak Attacks . | . . . Combat Hostiles . | . . . Follow-up Attacks . | . . . Damage Inflicted 826 | . 407 419 Guns 460 | . 267 193 Cannons 140 | . 140 . Explosions 223 | . . 223 Melee . | . . . Ramming 3 | . . 3 Kinetic 7 | . . 7 Thermal 571 | . 385 186 Explosive 223 | . . 223 Electromagnetic 22 | . 22 . Impact . | . . . Slashing . | . . . Piercing . | . . . Highest Corruption . | . . . Average Corruption . | . . . Corruption Purged . | . . . Overload Shots . | . . . Overflow Damage 7 | . 7 . Projectiles 7 | . 7 . Explosions . | . . . Melee . | . . . Knockbacks . | . . . Impact . | . . . Kinetic . | . . . Secondary . | . . . Self-Inflicted Damage 1 | . . 1 Shots . | . . . Rammed 1 | . . 1 Targets Rammed 2 | . . 2 Kicked 1 | . . 1 Crushed . | . . . Highest Temperature 350 | . 350 313 Average Temperature 139 | . 140 138 Received Heat Transfer 378 | . 114 264 Effects 3 | . 1 2 Interference 2 | . . 2 Matter Decay 1 | . 1 . Siege Activations . | . . . Robots Corrupted . | . . . Combat Hostiles . | . . . Parts Fried . | . . . Impact Corruptions . | . . . Robots Melted . | . . . Combat Hostiles . | . . . Parts Melted . | . . . Heat Transferred 1378 | . 953 425 Parts Sabotaged . | . . . Parts Stolen . | . . . Parts Stripped . | . . . Power Chain Reactions . | . . . Missiles Intercepted . | . . . Alert | -11 -10 -10 ------- Run | Scr Mat Min Peak Influence 221 | . 221 60 Initial 7 | . . 7 Average 42 | . 116 7 Maximum Alert Level 1 | . 1 . Low Security (%) 96 | 100 88 100 Level 1 3 | . 11 . Level 2 . | . . . Level 3 . | . . . Level 4 . | . . . Level 5 . | . . . High Security . | . . . Max Security . | . . . Squads Dispatched 2 | . 2 . Investigation . | . . . Extermination . | . . . Reinforcement 2 | . 2 . Assault . | . . . Garrison . | . . . Intercept . | . . . Construction Impeded . | . . . Haulers Reinforced . | . . . Stealth | -11 -10 -10 --------- Run | Scr Mat Min Distress Signals . | . . . Communications Jammed . | . . . Distress Signals . | . . . Times Spotted 26 | . 18 8 Peak Tracking Total 6 | . 4 6 Tactical Retreats 2 | . . 2 Traps | -11 -10 -10 ------- Run | Scr Mat Min Traps Triggered . | . . . Indirectly . | . . . Trap Hack Attempts . | . . . Triggered . | . . . Disarmed . | . . . Reprogrammed . | . . . Reused . | . . . Traps Extracted . | . . . Installed . | . . . Triggered . | . . . Machines | -11 -10 -10 ---------- Run | Scr Mat Min Machines Disabled 3 | . 3 . Max in Single Turn 1 | . 1 . Machines Sabotaged . | . . . Garrisons Compromised . | . . . Overloaded Fab Kills . | . . . Fab Network Shutdowns . | . . . Hacking | -11 -10 -10 --------- Run | Scr Mat Min Machines Accessed 2 | . 1 1 Terminals 2 | . 1 1 Fabricators . | . . . Repair Stations . | . . . Recycling Units . | . . . Scanalyzers . | . . . Garrison Access . | . . . Total Hacks 7 | . 5 2 Successful 4 | . 2 2 Failed 3 | . 3 . Catastrophic 2 | . 2 . Database Lockouts . | . . . Manual . | . . . Terminals 7 | . 5 2 Fabricators . | . . . Repair Stations . | . . . Recycling Units . | . . . Scanalyzers . | . . . Garrison Access . | . . . Terminal Hacks 4 | . 2 2 Record 2 | . 1 1 Registered Components 1 | . 1 . Zone Layout 1 | . . 1 Fabricator Hacks . | . . . Repair Station Hacks . | . . . Recycling Unit Hacks . | . . . Scanalyzer . | . . . Garrison Access Hacks . | . . . Unauthorized Hacks . | . . . Terminals . | . . . Fabricators . | . . . Repair Stations . | . . . Recycling Units . | . . . Scanalyzers . | . . . Garrison Access . | . . . Data Cores Recovered . | . . . Used . | . . . Hacking Detections 2 | . 1 1 Full Trace Events . | . . . Feedback Events . | . . . Feedback Blocked . | . . . Robot Schematics Acquired . | . . . Robots Built . | . . . Matter . | . . . Time . | . . . Total Robot Build Rating . | . . . Part Schematics Acquired . | . . . Parts Built . | . . . Matter . | . . . Time . | . . . Total Part Build Rating . | . . . Parts Repaired . | . . . Time . | . . . Parts Recycled . | . . . Recycled Matter . | . . . Retrieved Matter . | . . . Retrieved Components . | . . . Parts Scanalyzed . | . . . Part Schematics Acquired . | . . . Parts Damaged . | . . . Bothacking | -11 -10 -10 ------------ Run | Scr Mat Min Used RIF Installer . | . . . Robots Hacked . | . . . Non-combat . | . . . Combat . | . . . Robot Hacks Applied . | . . . Relay Couplers Released . | . . . Robots Rewired . | . . . Allies Hacked . | . . . Hacks Repelled . | . . . Allies | -11 -10 -10 -------- Run | Scr Mat Min Total Allies . | . . . Largest Group . | . . . Highest-Rated Group . | . . . Highest-Rated Ally . | . . . Total Orders . | . . . Ally Attacks . | . . . Total Damage . | . . . Kills . | . . . Allies Corrupted . | . . . Allies Melted . | . . . Intel | -11 -10 -10 ------- Run | Scr Mat Min Robot Analysis Total . | . . . Derelict Logs Recovered . | . . . Drone Launches . | . . . Drone Recoveries . | . . . Exploration | -11 -10 -10 ------------- Run | Scr Mat Min Turns Passed 1261 | 73 406 782 Spaces Moved 336 | 51 233 52 Core 7 | 2 . 5 Treads . | . . . Legs 329 | 49 233 47 Wheels . | . . . Hover . | . . . Flight . | . . . Fastest Speed 50 | 50 120 100 Average Speed 119 | 117 120 120 Slowest Speed 150 | 120 120 150 Overloaded Moves . | . . . Propulsion Burnouts . | . . . Robots Hopped . | . . . Cave-ins Triggered . | . . . Exploration Rate (%) 24 | 5 48 21 Regions Visited 2 Branch Regions 1 Pre-discovered Areas . | . . . Known Exits Taken . | . . . Unknown Exits Taken 2 | 1 1 . Scrap Searched . | . . . Spaces Dug . | . . . Terrain Destroyed 14 | . . 14 Melee . | . . . Projectile . | . . . AOE 14 | . . 14 Terrain Rammed . | . . . Walls Destroyed . | . . . Machines Disabled . | . . . Actions | -11 -10 -10 --------- Run | Scr Mat Min Total 1103 | 64 305 734 Wait 678 | . 22 656 Move 334 | 50 232 52 Hop . | . . . Pick Up 20 | 8 11 1 Fast Attach . | . . . Attach 13 | 6 5 2 Detach . | . . . Swap 3 | . 3 . Drop 3 | . 3 . Fire 50 | . 29 21 Melee . | . . . Ram . | . . . Kick 2 | . . 2 Crush . | . . . Escape Stasis . | . . . Rewire . | . . . Trap . | . . . Miscellaneous . | . . . Route ------- -11/Scrapyard -10/Materials (discovered 3 exits: [*Mat x2] / *Min) -10/Mines History --------- Turn | Location | Event 35 | -11/Scrapyard | Discovered new exit (range 15) 74 | -11/Scrapyard | Entered Materials 307 | -10/Materials | Lost 3 parts (3w) 335 | -10/Materials | Build established: Mutant 367 | -10/Materials | Discovered new exit (range 4) 455 | -10/Materials | Discovered new exit (range 15) 463 | -10/Materials | Discovered new exit (range 15) 480 | -10/Materials | Entered Mines 503 | -10/Mines | Excavation squad dispatched 503 | -10/Mines | A large section of the Mines collapsed 549 | -10/Mines | Met a Derelict bent on vengeance 753 | -10/Mines | Excavation squad dispatched 1003 | -10/Mines | Excavation squad dispatched 1247 | -10/Mines | Core integrity fell below 50% 1253 | -10/Mines | Excavation squad dispatched 1257 | -10/Mines | Core integrity fell below 20% 1262 | -10/Mines | Destroyed by G-34 Mercenary with Small Laser Last Messages --------------- 01195_ G-34 Mercenary overheating. 01196_ G-34 Mercenary heat damages Aluminum Leg. 01196_ G-34 Mercenary overheating. 01205_ G-34 Mercenary destroyed. 01213_ Overheating: System interference. 01213_ Sml. Laser temporarily disabled. 01215_ Sml. Laser destroyed. 01227_ Kicked T-07 Excavator out of the way. 01234_ Slammed into U-05 Engineer. 01238_ Aluminum Leg destroyed. 01244_ Lgt. Armor Plating destroyed. 01248_ Ion Engine destroyed. 01250_ S-10 Pest destroyed. 01250_ T-07 Excavator destroyed. 01252_ Aluminum Leg destroyed. 01252_ S-10 Pest destroyed. 01253_ ALERT: Derelict activity in mines confirmed. Dispatching additional escorted excavation squad. 01254_ Grenade Launcher destroyed. 01259_ Acquired Lgt. Assault Rifle. Map ----- +----------------------------------------------------+ | ????????????????????????????????????????????????? | | ????????????????????????????????????????????????? | | ????????????????????????????????????????????????? | | ????????????????????????????????????????????????? | | ????????????????????????????????????????????????? | | ????????????????????????????????????????????????? | | ????????????????????????????????????????????????? | | ????????????????????????????????????????????????? | | ????????????????????????????????????????????????? | | ????????????????????????????????????????????????? | | ???????????????????????# ???????????????????????? | | ???????????????????????# ???????????????????????? | | ??????????????? ### ???# ???????????????????????? | | ???????????????? ??## ???????????????????????? | | ????????????????? ?? ???????????????????????? | | ????????????? """ ?? ???????????????????????? | | ?????????????# """ #?# ???????????????????????? | | ??????????????# t""" ## #??????????????????????? | | ??????????????# ##?????????????????????? | | ???????????????# ##????????????????????? | | ???????????????????# #????????????????????? | | ???????????????????## #????????????????????? | | ???????????????????# g ##????????????????????? | | ???????????????????# g #????????????????????? | | ???????????????????# == #????????????????????? | | ???????????????????# @%##???????????????????? | | ???????????? ### =% ##??????????????????? | | ???????????? #### #?## = ##?????????????????? | | ???????????? #?## #??### #?????????????????? | | ????????????#### #????##g #?????????????????? | | ????????????## #?????## ##?????????????????? | | ????????????# #??????#t##??????????????????? | | ??????????#? ##??????# #???????###?????????? | | ??????##### ###????#### #????####T###???????? | | ?????# "* " ##??????# #????# #???????? | | ???????|%! % ##??????# ####????# """#???????? | | ???????????# " ####???# ######### """#???????? | | ???????????#% [=%=##### """#???????? | | ???????????##" ###* ######### #???????? | | ????????????####?# #######?###################??? | | ????????????????######????## #??? | | ???????????????## ##???#T #??? | | ??????????????## ###### #??? | | ????????????#?# #??? | | ????????????### ####### #??? | | ???????????? ### ####?????# """ """ """ """ #??? | | ???????????? #####????????# """ """ """ """????? | | ???????????? #????????????# """ """ """ ""?????? | | ???????????? ##????????????################?????? | | ????????????##??????????????????????????????????? | +----------------------------------------------------+ Best States ------------- Heat Dissipation 35 Energy Generation 10 Energy Capacity 250 Matter Stores 276 Matter Capacity 300 Sight Range 16 Terrain Scan Density 10 Armor Coverage 150 Propulsion Shielding 33 Evasion (%) 40 Item Schematics ----------------- None Robot Schematics ------------------ None Fabricated ------------ Nothing Alien Tech Used ----------------- None Achievements -------------- None Challenges ------------ None Game ------ Seed TransportCompositeMembrane Manual? 0 Play Time 00:15:18 Cumulative 64.7 hours Start 2022.01.15 @ 17:08:28 End 2022.01.20 @ 07:43:47 Sessions 2 Manual Loads 0 Difficulty Rogue Special Mode None Game No. 42 Rogue 42 Adventurer 0 Explorer 0 Win Type - Total 0 Types 0/0/0/0/0/0/0/0/0 Lore% 16 Gallery% 29 Achievement% 25 Wizard Run 0 Options --------- ASCII 0 Keyboard 0 Movement Mouse Keybinds 0 Fullscreen 2 Font 16/Cog Map View 76x50 Tactical HUD 1 Map Filters NONE Filters NONE Steam 1 RUN: 88c5ad1c-0378-4eb9-9a24-bd2b167d8656